[Event "Early-Titled-Tuesday-Blitz-March-05-2024"]
[Site "Chess.com"]
[Date "2024.03.05"]
[Round "8"]
[White "ValentunHulka"]
[Black "DeArron_Fox"]
[Result "1/2-1/2"]
[WhiteElo "2773"]
[BlackElo "2536"]
[TimeControl "180+1"]
[EndTime "9:31:37 PST"]
[Termination "Game drawn by repetition"]

1. e4 {[%clk 0:03:00.9]} 1... c5 {[%clk 0:02:55.2]} 2. Nf3 {[%clk 0:02:58.1]}
2... e6 {[%clk 0:02:55.1]} 3. g3 {[%clk 0:02:58.8]} 3... d5 {[%clk 0:02:44.6]}
4. exd5 {[%clk 0:02:58]} 4... exd5 {[%clk 0:02:45.5]} 5. d4 {[%clk 0:02:57.3]}
5... Nf6 {[%clk 0:02:38.1]} 6. Bg2 {[%clk 0:02:57.5]} 6... Nc6 {[%clk
0:02:38.1]} 7. O-O {[%clk 0:02:57.5]} 7... Be7 {[%clk 0:02:38.7]} 8. dxc5 {[%clk
0:02:57.2]} 8... O-O {[%clk 0:02:37.8]} 9. Be3 {[%clk 0:02:55.2]} 9... Bg4
{[%clk 0:01:58.4]} 10. c3 {[%clk 0:02:47]} 10... Ne4 {[%clk 0:01:51.7]} 11. Qa4
{[%clk 0:02:39.6]} 11... Bxf3 {[%clk 0:01:35.8]} 12. Bxf3 {[%clk 0:02:39.4]}
12... Bxc5 {[%clk 0:01:35.3]} 13. Bxc5 {[%clk 0:02:02.8]} 13... Nxc5 {[%clk
0:01:35.1]} 14. Qb5 {[%clk 0:02:01.2]} 14... Qd6 {[%clk 0:00:55.3]} 15. Rd1
{[%clk 0:01:57.5]} 15... a6 {[%clk 0:00:35]} 16. Qf1 {[%clk 0:01:53.8]} 16...
Ne7 {[%clk 0:00:26.7]} 17. Nd2 {[%clk 0:01:53.9]} 17... Qf6 {[%clk 0:00:19.6]}
18. Bg2 {[%clk 0:01:51.5]} 18... Rad8 {[%clk 0:00:20.1]} 19. Nf3 {[%clk
0:01:48.5]} 19... Nc6 {[%clk 0:00:12.7]} 20. Nd4 {[%clk 0:01:47.3]} 20... Ne4
{[%clk 0:00:12.3]} 21. Nxc6 {[%clk 0:01:43.4]} 21... Qxc6 {[%clk 0:00:11.3]} 22.
Rd4 {[%clk 0:01:42.3]} 22... Rfe8 {[%clk 0:00:08.4]} 23. Rad1 {[%clk 0:01:42.4]}
23... Qb6 {[%clk 0:00:07.9]} 24. Qd3 {[%clk 0:01:31.3]} 24... Nf6 {[%clk
0:00:04.4]} 25. Qd2 {[%clk 0:01:31.6]} 25... h6 {[%clk 0:00:03.6]} 26. h3 {[%clk
0:01:31]} 26... Qc5 {[%clk 0:00:03.4]} 27. c4 {[%clk 0:01:30.2]} 27... Qb6
{[%clk 0:00:02.3]} 28. cxd5 {[%clk 0:01:27.2]} 28... Rd6 {[%clk 0:00:02.6]} 29.
g4 {[%clk 0:01:23.2]} 29... Red8 {[%clk 0:00:03.1]} 30. Bf3 {[%clk 0:01:21.6]}
30... Nd7 {[%clk 0:00:03]} 31. b3 {[%clk 0:01:13.9]} 31... Ne5 {[%clk
0:00:03.1]} 32. Bg2 {[%clk 0:01:14.5]} 32... Ng6 {[%clk 0:00:02.7]} 33. Qe3
{[%clk 0:01:11.8]} 33... Rf6 {[%clk 0:00:03]} 34. f4 {[%clk 0:01:10]} 34... Qd6
{[%clk 0:00:03.1]} 35. Rf1 {[%clk 0:01:05.2]} 35... Nf8 {[%clk 0:00:02.2]} 36.
Qe5 {[%clk 0:01:02.2]} 36... Qb6 {[%clk 0:00:02.5]} 37. Kh1 {[%clk 0:00:58.2]}
37... Re8 {[%clk 0:00:02.9]} 38. Qxe8 {[%clk 0:00:54.6]} 38... Qxd4 {[%clk
0:00:03.2]} 39. Qe5 {[%clk 0:00:54.3]} 39... Qxe5 {[%clk 0:00:03.6]} 40. fxe5
{[%clk 0:00:54.2]} 40... Rxf1+ {[%clk 0:00:04.5]} 41. Bxf1 {[%clk 0:00:55]}
41... Nd7 {[%clk 0:00:05.4]} 42. e6 {[%clk 0:00:52]} 42... fxe6 {[%clk
0:00:06.3]} 43. dxe6 {[%clk 0:00:52.9]} 43... Nc5 {[%clk 0:00:04.6]} 44. Bg2
{[%clk 0:00:47.8]} 44... b6 {[%clk 0:00:03]} 45. Bd5 {[%clk 0:00:40.7]} 45...
Kf8 {[%clk 0:00:03.1]} 46. b4 {[%clk 0:00:31.5]} 46... Nd3 {[%clk 0:00:03.1]}
47. a3 {[%clk 0:00:32.1]} 47... Ke7 {[%clk 0:00:03.5]} 48. Kh2 {[%clk
0:00:30.7]} 48... Nf4 {[%clk 0:00:03.2]} 49. Bc4 {[%clk 0:00:29.6]} 49... a5
{[%clk 0:00:03.4]} 50. Kg3 {[%clk 0:00:29.1]} 50... Nxe6 {[%clk 0:00:03.4]} 51.
h4 {[%clk 0:00:23.4]} 51... axb4 {[%clk 0:00:03.6]} 52. axb4 {[%clk 0:00:24.3]}
52... Kd6 {[%clk 0:00:02.9]} 53. Kf3 {[%clk 0:00:22.2]} 53... Nd4+ {[%clk
0:00:03]} 54. Ke4 {[%clk 0:00:21.2]} 54... Nc6 {[%clk 0:00:03.9]} 55. b5 {[%clk
0:00:20.4]} 55... Ne5 {[%clk 0:00:04.1]} 56. Be2 {[%clk 0:00:21]} 56... Ke6
{[%clk 0:00:03.7]} 57. Bd1 {[%clk 0:00:16.7]} 57... g6 {[%clk 0:00:03.3]} 58.
Be2 {[%clk 0:00:11.6]} 58... Kd6 {[%clk 0:00:03]} 59. Bd1 {[%clk 0:00:10.5]}
59... Ke6 {[%clk 0:00:03.3]} 60. Kd4 {[%clk 0:00:08.3]} 60... Kd6 {[%clk
0:00:02.3]} 61. Be2 {[%clk 0:00:08.9]} 61... Ke6 {[%clk 0:00:02.5]} 62. Ke4
{[%clk 0:00:08]} 62... Kd6 {[%clk 0:00:02.4]} 63. g5 {[%clk 0:00:08.9]} 63...
hxg5 {[%clk 0:00:02.5]} 64. hxg5 {[%clk 0:00:09.8]} 64... Ke6 {[%clk 0:00:02.3]}
65. Kf4 {[%clk 0:00:09.2]} 65... Nf7 {[%clk 0:00:02]} 66. Bc4+ {[%clk
0:00:08.8]} 66... Ke7 {[%clk 0:00:01.6]} 67. Bd3 {[%clk 0:00:06.3]} 67... Nd6
{[%clk 0:00:01.1]} 68. Ke5 {[%clk 0:00:05.7]} 68... Nf7+ {[%clk 0:00:01.1]} 69.
Kf4 {[%clk 0:00:05.6]} 69... Nd6 {[%clk 0:00:01.7]} 70. Be2 {[%clk 0:00:04.5]}
70... Ke6 {[%clk 0:00:01.7]} 71. Bd3 {[%clk 0:00:05.1]} 71... Ke7 {[%clk
0:00:01.7]} 1/2-1/2

[Event "Early-Titled-Tuesday-Blitz-March-05-2024"]
[Site "Chess.com"]
[Date "2024.03.05"]
[Round "8"]
[White "stollenmonster"]
[Black "ChristianArca"]
[Result "1-0"]
[WhiteElo "2891"]
[BlackElo "2700"]
[TimeControl "180+1"]
[EndTime "9:31:38 PST"]
[Termination "stollenmonster won by resignation"]

1. e4 {[%clk 0:03:00.9]} 1... c6 {[%clk 0:02:59.8]} 2. d4 {[%clk 0:03:00.5]}
2... d5 {[%clk 0:03:00.7]} 3. e5 {[%clk 0:03:00.7]} 3... Bf5 {[%clk 0:03:00.8]}
4. Ne2 {[%clk 0:03:01.2]} 4... e6 {[%clk 0:03:00]} 5. Ng3 {[%clk 0:03:01.8]}
5... Bg6 {[%clk 0:02:59.4]} 6. h4 {[%clk 0:03:02.4]} 6... h5 {[%clk 0:02:49.7]}
7. Bd3 {[%clk 0:03:01.9]} 7... Bxd3 {[%clk 0:02:48.3]} 8. cxd3 {[%clk
0:03:02.8]} 8... c5 {[%clk 0:02:47.4]} 9. dxc5 {[%clk 0:03:03.7]} 9... Bxc5
{[%clk 0:02:31.7]} 10. d4 {[%clk 0:03:03.1]} 10... Be7 {[%clk 0:02:25.1]} 11.
Nxh5 {[%clk 0:03:02]} 11... g6 {[%clk 0:02:24.9]} 12. Nf4 {[%clk 0:03:02.1]}
12... Rxh4 {[%clk 0:02:23.1]} 13. Rxh4 {[%clk 0:03:01.6]} 13... Bxh4 {[%clk
0:02:24]} 14. Nd2 {[%clk 0:02:43.1]} 14... Nc6 {[%clk 0:02:16.1]} 15. Nf3 {[%clk
0:02:42.9]} 15... Be7 {[%clk 0:02:16.7]} 16. Kf1 {[%clk 0:02:39.3]} 16... Kf8
{[%clk 0:02:11.2]} 17. g4 {[%clk 0:02:14.9]} 17... Rc8 {[%clk 0:02:06.7]} 18.
Kg2 {[%clk 0:02:13.2]} 18... Kg7 {[%clk 0:02:04.9]} 19. Qh1 {[%clk 0:02:11]}
19... Qb6 {[%clk 0:02:04.3]} 20. Be3 {[%clk 0:02:06.9]} 20... Nb4 {[%clk
0:02:00.8]} 21. Qh3 {[%clk 0:01:27.6]} 21... Nc2 {[%clk 0:01:51.5]} 22. Rh1
{[%clk 0:01:27.8]} 22... Nxe3+ {[%clk 0:01:49.9]} 23. fxe3 {[%clk 0:01:28.2]}
23... Qxb2+ {[%clk 0:01:27.3]} 24. Kg3 {[%clk 0:01:27]} 24... g5 {[%clk
0:01:27.2]} 25. Qh8+ {[%clk 0:01:26.4]} 25... Kf8 {[%clk 0:01:26.3]} 26. Nxe6+
{[%clk 0:00:44.1]} 26... fxe6 {[%clk 0:01:15.3]} 27. Rh7 {[%clk 0:00:44.3]}
27... Qc1 {[%clk 0:00:48.5]} 28. Qg7+ {[%clk 0:00:43.2]} 28... Ke8 {[%clk
0:00:49]} 29. Qxg8+ {[%clk 0:00:42.9]} 29... Kd7 {[%clk 0:00:49.6]} 30. Qf7
{[%clk 0:00:12.4]} 30... Re8 {[%clk 0:00:45.8]} 31. Rh6 {[%clk 0:00:12.9]} 31...
Qxe3 {[%clk 0:00:40.6]} 32. Qxe6+ {[%clk 0:00:12.7]} 32... Kc7 {[%clk
0:00:40.7]} 33. Qxd5 {[%clk 0:00:09.2]} 33... Qf4+ {[%clk 0:00:40.7]} 34. Kh3
{[%clk 0:00:09.4]} 34... Rf8 {[%clk 0:00:37.2]} 35. Rh7 {[%clk 0:00:06.5]} 35...
Qxf3+ {[%clk 0:00:20.1]} 36. Qxf3 {[%clk 0:00:06.8]} 36... Rxf3+ {[%clk
0:00:21]} 37. Kg2 {[%clk 0:00:07.5]} 37... Rf4 {[%clk 0:00:21.9]} 38. Rxe7+
{[%clk 0:00:07.6]} 38... Kd8 {[%clk 0:00:21.9]} 39. Rxb7 {[%clk 0:00:07.3]}
39... Rxg4+ {[%clk 0:00:22.5]} 40. Kf3 {[%clk 0:00:07.7]} 40... Rxd4 {[%clk
0:00:23.2]} 41. Rxa7 {[%clk 0:00:08.1]} 41... Rb4 {[%clk 0:00:15.7]} 42. a4
{[%clk 0:00:07.9]} 42... Kc8 {[%clk 0:00:15]} 43. e6 {[%clk 0:00:07.3]} 43...
Kd8 {[%clk 0:00:13.7]} 44. a5 {[%clk 0:00:07.2]} 44... Ke8 {[%clk 0:00:12.1]}
45. a6 {[%clk 0:00:06.4]} 45... Ra4 {[%clk 0:00:12.1]} 46. Kg3 {[%clk
0:00:05.9]} 46... Kd8 {[%clk 0:00:12.1]} 47. Kf3 {[%clk 0:00:05.4]} 47... Ke8
{[%clk 0:00:12.7]} 48. Ke3 {[%clk 0:00:05.8]} 48... Kd8 {[%clk 0:00:12.9]} 49.
Kd3 {[%clk 0:00:06.1]} 49... Ke8 {[%clk 0:00:12.5]} 50. Kc3 {[%clk 0:00:06.5]}
50... g4 {[%clk 0:00:13.1]} 51. Kd3 {[%clk 0:00:06.3]} 51... Kd8 {[%clk
0:00:10.9]} 52. Ke3 {[%clk 0:00:06.6]} 52... Ke8 {[%clk 0:00:10.9]} 53. Kf2
{[%clk 0:00:07.3]} 53... Kf8 {[%clk 0:00:10.9]} 54. Kg3 {[%clk 0:00:08]} 54...
Ke8 {[%clk 0:00:11.5]} 55. Kh4 {[%clk 0:00:08.6]} 55... Kd8 {[%clk 0:00:11.9]}
56. Kg5 {[%clk 0:00:09]} 56... g3 {[%clk 0:00:12.5]} 57. Kf6 {[%clk 0:00:08.7]}
57... Rf4+ {[%clk 0:00:08.6]} 58. Ke5 {[%clk 0:00:08.9]} 58... Rf1 {[%clk
0:00:08.3]} 59. Ra8+ {[%clk 0:00:08.4]} 59... Ke7 {[%clk 0:00:07.8]} 60. Ra7+
{[%clk 0:00:08.8]} 60... Ke8 {[%clk 0:00:07.9]} 61. Rg7 {[%clk 0:00:09.2]} 61...
Re1+ {[%clk 0:00:07.7]} 62. Kd6 {[%clk 0:00:09.7]} 62... Rd1+ {[%clk 0:00:08]}
63. Kc5 {[%clk 0:00:10]} 63... Ra1 {[%clk 0:00:08]} 64. a7 {[%clk 0:00:09.4]}
64... g2 {[%clk 0:00:08.1]} 65. Rxg2 {[%clk 0:00:08.6]} 65... Rxa7 {[%clk
0:00:08.3]} 66. Rg8+ {[%clk 0:00:09]} 66... Ke7 {[%clk 0:00:03]} 67. Rg7+ {[%clk
0:00:09.6]} 67... Kxe6 {[%clk 0:00:03.8]} 68. Rxa7 {[%clk 0:00:10.3]} 1-0

[Event "Early-Titled-Tuesday-Blitz-March-05-2024"]
[Site "Chess.com"]
[Date "2024.03.05"]
[Round "8"]
[White "Nemegejas"]
[Black "Josetricks"]
[Result "1/2-1/2"]
[WhiteElo "2789"]
[BlackElo "2576"]
[TimeControl "180+1"]
[EndTime "9:31:57 PST"]
[Termination "Game drawn - insufficient material"]

1. d4 {[%clk 0:03:00.9]} 1... g6 {[%clk 0:03:00.9]} 2. e4 {[%clk 0:03:00.4]}
2... Bg7 {[%clk 0:03:01.2]} 3. Nc3 {[%clk 0:03:00.8]} 3... c6 {[%clk 0:03:00.3]}
4. Nf3 {[%clk 0:02:45]} 4... d5 {[%clk 0:02:57.9]} 5. h3 {[%clk 0:02:45.3]} 5...
dxe4 {[%clk 0:02:57.6]} 6. Nxe4 {[%clk 0:02:45.5]} 6... Nf6 {[%clk 0:02:58.5]}
7. Nxf6+ {[%clk 0:02:45.1]} 7... exf6 {[%clk 0:02:59.3]} 8. Bc4 {[%clk
0:02:44.3]} 8... O-O {[%clk 0:02:58]} 9. O-O {[%clk 0:02:44.8]} 9... a5 {[%clk
0:02:57.1]} 10. Re1 {[%clk 0:02:32.7]} 10... Na6 {[%clk 0:02:54.8]} 11. Bf4
{[%clk 0:02:28.8]} 11... Nc7 {[%clk 0:02:49.3]} 12. Bf1 {[%clk 0:02:12.3]} 12...
Nd5 {[%clk 0:02:44.2]} 13. Bh2 {[%clk 0:02:11.8]} 13... Be6 {[%clk 0:02:35.4]}
14. c4 {[%clk 0:02:07]} 14... Nc7 {[%clk 0:02:26.6]} 15. Qc2 {[%clk 0:02:02.4]}
15... Re8 {[%clk 0:02:23.5]} 16. Rad1 {[%clk 0:01:56.7]} 16... Bf8 {[%clk
0:02:13.9]} 17. Bf4 {[%clk 0:00:58.5]} 17... Bd6 {[%clk 0:02:09.7]} 18. Bc1
{[%clk 0:00:58.9]} 18... Kg7 {[%clk 0:02:05.8]} 19. Qd2 {[%clk 0:00:57]} 19...
a4 {[%clk 0:01:59.3]} 20. b3 {[%clk 0:00:45.4]} 20... axb3 {[%clk 0:01:56]} 21.
axb3 {[%clk 0:00:46.3]} 21... Kg8 {[%clk 0:01:52]} 22. g3 {[%clk 0:00:38.1]}
22... Qd7 {[%clk 0:01:45.7]} 23. Kh2 {[%clk 0:00:38]} 23... Bf5 {[%clk
0:01:43.5]} 24. Bg2 {[%clk 0:00:26.3]} 24... Rxe1 {[%clk 0:01:40.7]} 25. Rxe1
{[%clk 0:00:26.2]} 25... Re8 {[%clk 0:01:41.6]} 26. Rxe8+ {[%clk 0:00:26.4]}
26... Qxe8 {[%clk 0:01:32.5]} 27. Qc3 {[%clk 0:00:26.7]} 27... Qe2 {[%clk
0:01:29.1]} 28. Be3 {[%clk 0:00:27.3]} 28... Kg7 {[%clk 0:01:25.5]} 29. Qd2
{[%clk 0:00:27]} 29... Qxd2 {[%clk 0:01:22.3]} 30. Nxd2 {[%clk 0:00:27.9]} 30...
Bb4 {[%clk 0:01:16]} 31. Ne4 {[%clk 0:00:21.9]} 31... h5 {[%clk 0:01:13.4]} 32.
Bf3 {[%clk 0:00:20]} 32... Ne6 {[%clk 0:01:07.7]} 33. Kg2 {[%clk 0:00:19.6]}
33... Ng5 {[%clk 0:01:03.3]} 34. Nxg5 {[%clk 0:00:14.9]} 34... fxg5 {[%clk
0:01:04.2]} 35. Bd1 {[%clk 0:00:07.1]} 35... f6 {[%clk 0:01:01.4]} 36. f3 {[%clk
0:00:04.2]} 36... Be6 {[%clk 0:01:01.3]} 37. Kf2 {[%clk 0:00:04.2]} 37... b5
{[%clk 0:00:59.4]} 38. cxb5 {[%clk 0:00:03.2]} 38... cxb5 {[%clk 0:00:59.9]} 39.
g4 {[%clk 0:00:03.8]} 39... h4 {[%clk 0:00:56.4]} 40. Bc2 {[%clk 0:00:03.9]}
40... Bd5 {[%clk 0:00:55.3]} 41. Bd3 {[%clk 0:00:03.7]} 41... Bxb3 {[%clk
0:00:54]} 42. Bxb5 {[%clk 0:00:04.4]} 42... Bd5 {[%clk 0:00:54.2]} 43. Bd3
{[%clk 0:00:04.7]} 43... Kf7 {[%clk 0:00:54.2]} 44. Be4 {[%clk 0:00:04.1]} 44...
Bc4 {[%clk 0:00:52.3]} 45. d5 {[%clk 0:00:04.1]} 45... Bd6 {[%clk 0:00:51.9]}
46. Bd4 {[%clk 0:00:03.9]} 46... Bg3+ {[%clk 0:00:50.7]} 47. Ke3 {[%clk
0:00:03.4]} 47... Bf1 {[%clk 0:00:49.2]} 48. Bc5 {[%clk 0:00:01.6]} 48... Bxh3
{[%clk 0:00:48.6]} 49. d6 {[%clk 0:00:02]} 49... f5 {[%clk 0:00:49.1]} 50. Bd5+
{[%clk 0:00:01.5]} 50... Ke8 {[%clk 0:00:44.9]} 51. Bc6+ {[%clk 0:00:02]} 51...
Kf7 {[%clk 0:00:45]} 52. d7 {[%clk 0:00:02.6]} 52... Bc7 {[%clk 0:00:41.8]} 53.
Bd6 {[%clk 0:00:02.8]} 53... Bb6+ {[%clk 0:00:36.5]} 54. Kd3 {[%clk 0:00:02.7]}
54... fxg4 {[%clk 0:00:36.3]} 55. Bd5+ {[%clk 0:00:03.4]} 55... Kg7 {[%clk
0:00:32.9]} 56. Be5+ {[%clk 0:00:03.3]} 56... Kh7 {[%clk 0:00:32.8]} 57. Be6
{[%clk 0:00:04]} 57... Bg2 {[%clk 0:00:25.9]} 58. Bxg4 {[%clk 0:00:03]} 58... h3
{[%clk 0:00:23]} 59. Ke2 {[%clk 0:00:03.3]} 59... Bd8 {[%clk 0:00:21.4]} 60. Kf2
{[%clk 0:00:02.2]} 60... Kg8 {[%clk 0:00:21.3]} 61. Be6+ {[%clk 0:00:01.8]}
61... Kf8 {[%clk 0:00:21.6]} 62. Bd6+ {[%clk 0:00:02.2]} 62... Kg7 {[%clk
0:00:22.1]} 63. Kg3 {[%clk 0:00:02.3]} 63... Kf6 {[%clk 0:00:20.8]} 64. Bg4
{[%clk 0:00:02.8]} 64... Kf7 {[%clk 0:00:15.1]} 65. Kh2 {[%clk 0:00:03]} 65...
Kf6 {[%clk 0:00:15.3]} 66. Kg3 {[%clk 0:00:03.4]} 66... Kf7 {[%clk 0:00:15.6]}
67. Be5 {[%clk 0:00:02.9]} 67... Kf8 {[%clk 0:00:13.8]} 68. Bb8 {[%clk
0:00:02.6]} 68... Ke7 {[%clk 0:00:13.7]} 69. Be5 {[%clk 0:00:02.7]} 69... Kf7
{[%clk 0:00:11.9]} 70. Bxh3 {[%clk 0:00:02.5]} 70... Bxh3 {[%clk 0:00:11.8]} 71.
Kxh3 {[%clk 0:00:03.4]} 71... Ke7 {[%clk 0:00:11.8]} 72. Kg4 {[%clk 0:00:04.1]}
72... Kxd7 {[%clk 0:00:12.3]} 73. Bd4 {[%clk 0:00:04.6]} 73... Ke6 {[%clk
0:00:12.7]} 74. Be3 {[%clk 0:00:05.3]} 74... Ke5 {[%clk 0:00:12.1]} 75. Bxg5
{[%clk 0:00:04.5]} 75... Ba5 {[%clk 0:00:06.5]} 76. Bh4 {[%clk 0:00:03.4]} 76...
Ke6 {[%clk 0:00:06.6]} 77. Kg5 {[%clk 0:00:03.2]} 77... Bd8+ {[%clk 0:00:05.4]}
78. Kg4 {[%clk 0:00:03.9]} 78... Bxh4 {[%clk 0:00:05.5]} 79. Kxh4 {[%clk
0:00:04.5]} 79... Kf5 {[%clk 0:00:06.2]} 80. Kg3 {[%clk 0:00:05.1]} 80... g5
{[%clk 0:00:06.8]} 81. Kg2 {[%clk 0:00:05]} 81... Kf4 {[%clk 0:00:07.4]} 82. Kf2
{[%clk 0:00:05.7]} 82... g4 {[%clk 0:00:08.1]} 83. fxg4 {[%clk 0:00:06.6]} 83...
Kxg4 {[%clk 0:00:09]} 1/2-1/2

[Event "Early-Titled-Tuesday-Blitz-March-05-2024"]
[Site "Chess.com"]
[Date "2024.03.05"]
[Round "8"]
[White "Caroexpert"]
[Black "wild3000"]
[Result "1/2-1/2"]
[WhiteElo "2601"]
[BlackElo "2494"]
[TimeControl "180+1"]
[EndTime "9:31:58 PST"]
[Termination "Game drawn by repetition"]

1. Nf3 {[%clk 0:02:57.5]} 1... d5 {[%clk 0:02:59]} 2. d3 {[%clk 0:02:57.8]} 2...
Nf6 {[%clk 0:02:57.9]} 3. g3 {[%clk 0:02:58.1]} 3... g6 {[%clk 0:02:58]} 4. Bg2
{[%clk 0:02:59]} 4... Bg7 {[%clk 0:02:58.9]} 5. O-O {[%clk 0:02:59.5]} 5... O-O
{[%clk 0:02:59.5]} 6. c4 {[%clk 0:03:00.3]} 6... c6 {[%clk 0:02:59.2]} 7. Qb3
{[%clk 0:02:57.5]} 7... Qb6 {[%clk 0:02:58.6]} 8. Be3 {[%clk 0:02:57.3]} 8...
Qxb3 {[%clk 0:02:53.7]} 9. axb3 {[%clk 0:02:58.2]} 9... a6 {[%clk 0:02:49.8]}
10. Nc3 {[%clk 0:02:57.3]} 10... Ng4 {[%clk 0:02:48.9]} 11. Bc5 {[%clk
0:02:54.8]} 11... Re8 {[%clk 0:02:48.9]} 12. h3 {[%clk 0:02:53.5]} 12... Nf6
{[%clk 0:02:48]} 13. Na4 {[%clk 0:02:51.4]} 13... Nbd7 {[%clk 0:02:47.9]} 14. d4
{[%clk 0:02:39]} 14... Nxc5 {[%clk 0:02:38.8]} 15. Nxc5 {[%clk 0:02:38.2]} 15...
Ne4 {[%clk 0:02:31.5]} 16. Nxe4 {[%clk 0:02:33.1]} 16... dxe4 {[%clk 0:02:32.4]}
17. Ne5 {[%clk 0:02:33.3]} 17... f6 {[%clk 0:02:26.8]} 18. Ng4 {[%clk
0:02:33.3]} 18... h5 {[%clk 0:02:16.4]} 19. Ne3 {[%clk 0:02:32]} 19... f5 {[%clk
0:02:16.6]} 20. Nc2 {[%clk 0:02:31.4]} 20... e5 {[%clk 0:02:08.2]} 21. e3 {[%clk
0:02:28.3]} 21... exd4 {[%clk 0:02:07.9]} 22. Nxd4 {[%clk 0:02:29.2]} 22... Be6
{[%clk 0:02:02.5]} 23. Rfd1 {[%clk 0:02:16.6]} 23... Bf7 {[%clk 0:02:01.8]} 24.
Rd2 {[%clk 0:02:11.2]} 24... Rad8 {[%clk 0:01:59.8]} 25. Rad1 {[%clk 0:02:10.8]}
25... Bf6 {[%clk 0:01:59.6]} 26. h4 {[%clk 0:02:10.3]} 26... c5 {[%clk
0:01:51.6]} 27. Ne2 {[%clk 0:02:09.6]} 27... Rxd2 {[%clk 0:01:48.5]} 28. Rxd2
{[%clk 0:02:09.8]} 28... Rd8 {[%clk 0:01:48.7]} 29. Rxd8+ {[%clk 0:02:01.6]}
29... Bxd8 {[%clk 0:01:49.6]} 30. f3 {[%clk 0:02:01.9]} 30... exf3 {[%clk
0:01:46.8]} 31. Bxf3 {[%clk 0:02:02.8]} 31... b6 {[%clk 0:01:45.5]} 32. Nf4
{[%clk 0:01:58.7]} 32... Bf6 {[%clk 0:01:42.5]} 33. Bb7 {[%clk 0:01:55.4]} 33...
a5 {[%clk 0:01:41.1]} 34. Bd5 {[%clk 0:01:54.6]} 34... Kg7 {[%clk 0:01:38]} 35.
Bxf7 {[%clk 0:01:53.8]} 35... Kxf7 {[%clk 0:01:38.2]} 36. Nd5 {[%clk 0:01:54.6]}
36... Bxb2 {[%clk 0:01:28]} 37. Nxb6 {[%clk 0:01:54.3]} 37... Ke6 {[%clk
0:01:26.8]} 38. Kg2 {[%clk 0:01:53.8]} 38... Bf6 {[%clk 0:01:21.2]} 39. Kf3
{[%clk 0:01:51.8]} 39... g5 {[%clk 0:01:21.1]} 40. hxg5 {[%clk 0:01:46.6]} 40...
Bxg5 {[%clk 0:01:21]} 41. Nd5 {[%clk 0:01:43.3]} 41... Ke5 {[%clk 0:01:02.1]}
42. Nb6 {[%clk 0:01:14.7]} 42... Bd8 {[%clk 0:00:55.4]} 43. Na4 {[%clk
0:01:08.1]} 43... Be7 {[%clk 0:00:52.7]} 44. Nb2 {[%clk 0:01:08.2]} 44... Ke6
{[%clk 0:00:45.2]} 45. Nd3 {[%clk 0:01:07.9]} 45... Bd6 {[%clk 0:00:44.9]} 46.
Kg2 {[%clk 0:01:05.6]} 46... Kf6 {[%clk 0:00:42.8]} 47. Kh3 {[%clk 0:01:03.6]}
47... Kg5 {[%clk 0:00:40.2]} 48. Ne1 {[%clk 0:00:55.1]} 48... Kf6 {[%clk
0:00:33.2]} 49. Nf3 {[%clk 0:00:53.4]} 49... Kg6 {[%clk 0:00:33.4]} 50. Ne1
{[%clk 0:00:51.3]} 50... Kg5 {[%clk 0:00:31.8]} 51. Nd3 {[%clk 0:00:48.2]} 51...
Kf6 {[%clk 0:00:27.5]} 52. Kg2 {[%clk 0:00:42.2]} 52... Kg5 {[%clk 0:00:27.4]}
53. Kf3 {[%clk 0:00:42.2]} 53... h4 {[%clk 0:00:26.8]} 54. gxh4+ {[%clk
0:00:42.4]} 54... Kxh4 {[%clk 0:00:27.7]} 55. e4 {[%clk 0:00:43]} 55... Kg5
{[%clk 0:00:26.5]} 56. e5 {[%clk 0:00:39.7]} 56... Be7 {[%clk 0:00:26.3]} 57.
Nf4 {[%clk 0:00:39.7]} 57... Kh6 {[%clk 0:00:18.8]} 58. Nd5 {[%clk 0:00:35]}
58... Bg5 {[%clk 0:00:16.4]} 59. e6 {[%clk 0:00:25.5]} 59... Kg7 {[%clk
0:00:15.6]} 60. Kg3 {[%clk 0:00:25.6]} 60... Kf8 {[%clk 0:00:14.3]} 61. Kf3
{[%clk 0:00:22.9]} 61... Ke8 {[%clk 0:00:13.8]} 62. Ke2 {[%clk 0:00:23]} 62...
Kf8 {[%clk 0:00:11.8]} 63. Kd3 {[%clk 0:00:23.2]} 63... Ke8 {[%clk 0:00:11.9]}
64. Kc3 {[%clk 0:00:23.1]} 64... Kf8 {[%clk 0:00:11.7]} 65. Kc2 {[%clk
0:00:23.5]} 65... Ke8 {[%clk 0:00:11.8]} 66. Kb2 {[%clk 0:00:23.7]} 66... Kf8
{[%clk 0:00:11.9]} 67. Kb1 {[%clk 0:00:23.6]} 67... Ke8 {[%clk 0:00:12]} 68. Kc2
{[%clk 0:00:23.9]} 68... Kf8 {[%clk 0:00:12.3]} 69. Kd3 {[%clk 0:00:18.1]} 69...
Ke8 {[%clk 0:00:12.3]} 70. Ke2 {[%clk 0:00:16.9]} 70... Kf8 {[%clk 0:00:12.4]}
71. Kf2 {[%clk 0:00:17.5]} 71... Ke8 {[%clk 0:00:12.6]} 72. Kf3 {[%clk
0:00:18.1]} 72... Kf8 {[%clk 0:00:12.2]} 73. Kf2 {[%clk 0:00:06.5]} 73... Ke8
{[%clk 0:00:12.2]} 74. Ke2 {[%clk 0:00:07.1]} 1/2-1/2